[Event "*** SCC Grand Prix: Titled Tuesday Blitz"]
[Site "Chess.com"]
[Date "2020.07.21"]
[Round "6"]
[White "Ashedu66"]
[Black "Giraffe_Chess"]
[Result "1-0"]
[WhiteElo "2246"]
[BlackElo "2388"]
[TimeControl "180+1"]
[EndTime "11:07:12 PDT"]
[Termination "Ashedu66 won on time"]

1. d4 {[%clk 0:03:00.9]} 1... f5 {[%clk 0:02:59.7]} 2. Bg5 {[%clk 0:02:59.9]}
2... g6 {[%clk 0:02:59.5]} 3. Nc3 {[%clk 0:02:58.8]} 3... Bg7 {[%clk 0:02:59.5]}
4. e4 {[%clk 0:02:58.2]} 4... d6 {[%clk 0:02:56.3]} 5. exf5 {[%clk 0:02:57.3]}
5... Bxf5 {[%clk 0:02:57.2]} 6. Bd3 {[%clk 0:02:57]} 6... Bxd3 {[%clk
0:02:53.6]} 7. Qxd3 {[%clk 0:02:57.1]} 7... Nf6 {[%clk 0:02:40.7]} 8. Nf3 {[%clk
0:02:50.9]} 8... O-O {[%clk 0:02:40.1]} 9. O-O-O {[%clk 0:02:49.6]} 9... a6
{[%clk 0:02:34]} 10. h4 {[%clk 0:02:43.8]} 10... Nbd7 {[%clk 0:02:17.1]} 11.
Rde1 {[%clk 0:02:26.1]} 11... b5 {[%clk 0:02:14.2]} 12. h5 {[%clk 0:02:05.2]}
12... b4 {[%clk 0:01:56.2]} 13. Ne4 {[%clk 0:01:58.7]} 13... Nxh5 {[%clk
0:01:40.5]} 14. Rxh5 {[%clk 0:01:53.8]} 14... gxh5 {[%clk 0:01:37]} 15. Ng3
{[%clk 0:01:50.7]} 15... Nf6 {[%clk 0:01:35.2]} 16. Nh4 {[%clk 0:01:28.5]} 16...
c5 {[%clk 0:01:23.8]} 17. Nhf5 {[%clk 0:01:22.7]} 17... Ra7 {[%clk 0:01:16.6]}
18. d5 {[%clk 0:01:01.1]} 18... c4 {[%clk 0:01:11.9]} 19. Qxc4 {[%clk
0:00:45.9]} 19... Rc7 {[%clk 0:01:11.1]} 20. Qd3 {[%clk 0:00:42.4]} 20... b3
{[%clk 0:01:06]} 21. axb3 {[%clk 0:00:41.3]} 21... a5 {[%clk 0:00:54.5]} 22. Kb1
{[%clk 0:00:37.1]} 22... Rf7 {[%clk 0:00:49.6]} 23. Nxg7 {[%clk 0:00:32.5]}
23... Kxg7 {[%clk 0:00:50.5]} 24. Nf5+ {[%clk 0:00:32.5]} 24... Kh8 {[%clk
0:00:48.4]} 25. Re6 {[%clk 0:00:27.7]} 25... Qc8 {[%clk 0:00:19.1]} 26. f3
{[%clk 0:00:22.8]} 26... a4 {[%clk 0:00:14.9]} 27. bxa4 {[%clk 0:00:22.2]} 27...
Qa8 {[%clk 0:00:14.5]} 28. b3 {[%clk 0:00:21.8]} 28... Nxd5 {[%clk 0:00:10.8]}
29. Nh6 {[%clk 0:00:17.3]} 29... Rg7 {[%clk 0:00:08.3]} 30. Bd2 {[%clk
0:00:13.2]} 30... Nf6 {[%clk 0:00:06]} 31. Nf5 {[%clk 0:00:12.8]} 31... Qc8
{[%clk 0:00:05.7]} 32. Re2 {[%clk 0:00:11.3]} 32... Rf7 {[%clk 0:00:03.6]} 33.
Nh6 {[%clk 0:00:11.1]} 33... Rg7 {[%clk 0:00:03.8]} 34. Nf5 {[%clk 0:00:11.3]}
34... Rg8 {[%clk 0:00:04.1]} 35. Nd4 {[%clk 0:00:11.4]} 35... e5 {[%clk
0:00:03.4]} 36. Nb5 {[%clk 0:00:11.3]} 36... Rd7 {[%clk 0:00:03.8]} 37. Bc3
{[%clk 0:00:10.6]} 37... Rgd8 {[%clk 0:00:03.1]} 38. Kb2 {[%clk 0:00:10.2]}
38... Qc6 {[%clk 0:00:02.9]} 39. Qf5 {[%clk 0:00:08.7]} 39... Rf7 {[%clk
0:00:01.1]} 40. Qe6 {[%clk 0:00:08.5]} 1-0

[Event "*** SCC Grand Prix: Titled Tuesday Blitz"]
[Site "Chess.com"]
[Date "2020.07.21"]
[Round "6"]
[White "tlomigtlis"]
[Black "Zmof"]
[Result "0-1"]
[WhiteElo "2360"]
[BlackElo "2187"]
[TimeControl "180+1"]
[EndTime "11:07:13 PDT"]
[Termination "Zmof won on time"]

1. d4 {[%clk 0:03:00.9]} 1... f5 {[%clk 0:02:58.9]} 2. g3 {[%clk 0:02:59.5]}
2... Nf6 {[%clk 0:02:58.8]} 3. Bg2 {[%clk 0:02:59.3]} 3... g6 {[%clk 0:02:59.5]}
4. c4 {[%clk 0:02:58.8]} 4... Bg7 {[%clk 0:02:59.2]} 5. Nc3 {[%clk 0:02:59.3]}
5... d6 {[%clk 0:02:59.5]} 6. Nf3 {[%clk 0:02:59.4]} 6... O-O {[%clk 0:02:59.6]}
7. O-O {[%clk 0:02:59.4]} 7... Qe8 {[%clk 0:03:00.2]} 8. d5 {[%clk 0:02:59.4]}
8... Na6 {[%clk 0:02:59.9]} 9. Rb1 {[%clk 0:02:54.9]} 9... Bd7 {[%clk
0:02:59.1]} 10. b4 {[%clk 0:02:54.2]} 10... c6 {[%clk 0:02:59.4]} 11. dxc6
{[%clk 0:02:54.5]} 11... bxc6 {[%clk 0:03:00]} 12. a3 {[%clk 0:02:42.4]} 12...
Rc8 {[%clk 0:02:58.4]} 13. Bb2 {[%clk 0:02:20.8]} 13... Nc7 {[%clk 0:02:56.3]}
14. Qa4 {[%clk 0:02:15.2]} 14... Ne4 {[%clk 0:02:37.3]} 15. Nxe4 {[%clk
0:02:04.4]} 15... fxe4 {[%clk 0:02:37]} 16. Nd2 {[%clk 0:01:53.9]} 16... Bxb2
{[%clk 0:02:23.5]} 17. Rxb2 {[%clk 0:01:54.8]} 17... d5 {[%clk 0:02:04.5]} 18.
Qxa7 {[%clk 0:01:50.8]} 18... Qf7 {[%clk 0:01:54.7]} 19. Qd4 {[%clk 0:01:29.7]}
19... Ne6 {[%clk 0:01:48.9]} 20. Qe5 {[%clk 0:01:02.6]} 20... Qf6 {[%clk
0:01:38.9]} 21. Qxf6 {[%clk 0:01:00.1]} 21... exf6 {[%clk 0:01:39.3]} 22. Rc1
{[%clk 0:00:55.9]} 22... Nd4 {[%clk 0:01:29.5]} 23. Kf1 {[%clk 0:00:56.1]} 23...
Ra8 {[%clk 0:01:29]} 24. Rc3 {[%clk 0:00:53.7]} 24... Ra7 {[%clk 0:01:21.4]} 25.
e3 {[%clk 0:00:51.2]} 25... Ne6 {[%clk 0:01:16.7]} 26. b5 {[%clk 0:00:43.5]}
26... Rb8 {[%clk 0:01:06.1]} 27. cxd5 {[%clk 0:00:10.6]} 27... cxd5 {[%clk
0:01:03.7]} 28. Rcb3 {[%clk 0:00:10.9]} 28... Nc5 {[%clk 0:01:01.9]} 29. Rc3
{[%clk 0:00:11.1]} 29... Na4 {[%clk 0:01:01]} 30. Rbc2 {[%clk 0:00:08.3]} 30...
Nxc3 {[%clk 0:01:00.9]} 31. Rxc3 {[%clk 0:00:09.2]} 31... Rxb5 {[%clk
0:00:58.4]} 32. h4 {[%clk 0:00:05.5]} 32... Rba5 {[%clk 0:00:55.7]} 33. Nb1
{[%clk 0:00:04.1]} 33... Kf7 {[%clk 0:00:49.9]} 34. Kg1 {[%clk 0:00:04.3]} 34...
Ke7 {[%clk 0:00:48.8]} 35. Kh2 {[%clk 0:00:04.7]} 35... Kd6 {[%clk 0:00:46.3]}
36. Bf1 {[%clk 0:00:05]} 36... Rc7 {[%clk 0:00:44.3]} 37. Rb3 {[%clk 0:00:05]}
37... Rc1 {[%clk 0:00:41.9]} 38. Kg2 {[%clk 0:00:05]} 38... Ba4 {[%clk
0:00:31.1]} 39. Rb6+ {[%clk 0:00:04.5]} 39... Ke7 {[%clk 0:00:28]} 40. Rb7+
{[%clk 0:00:04.1]} 40... Ke6 {[%clk 0:00:25.5]} 41. Rb6+ {[%clk 0:00:04.1]}
41... Kf5 {[%clk 0:00:23.2]} 42. Nd2 {[%clk 0:00:04.1]} 42... Bd1 {[%clk
0:00:20.4]} 43. Nb3 {[%clk 0:00:03.2]} 43... Bf3+ {[%clk 0:00:18.7]} 44. Kg1
{[%clk 0:00:02.5]} 44... Rxa3 {[%clk 0:00:15.5]} 45. Nd4+ {[%clk 0:00:02.4]}
45... Kg4 {[%clk 0:00:16.1]} 0-1

[Event "*** SCC Grand Prix: Titled Tuesday Blitz"]
[Site "Chess.com"]
[Date "2020.07.21"]
[Round "6"]
[White "Jospem"]
[Black "RaunakSadhwani2005"]
[Result "0-1"]
[WhiteElo "2841"]
[BlackElo "3002"]
[TimeControl "180+1"]
[EndTime "11:07:15 PDT"]
[Termination "RaunakSadhwani2005 won on time"]

1. e4 {[%clk 0:02:59.1]} 1... c6 {[%clk 0:02:58.2]} 2. Nc3 {[%clk 0:02:59]} 2...
d5 {[%clk 0:02:58.4]} 3. Nf3 {[%clk 0:02:59.2]} 3... Bg4 {[%clk 0:02:56.4]} 4.
h3 {[%clk 0:02:57.5]} 4... Bxf3 {[%clk 0:02:55.9]} 5. Qxf3 {[%clk 0:02:58.4]}
5... e6 {[%clk 0:02:56.3]} 6. Be2 {[%clk 0:02:58.6]} 6... Nf6 {[%clk 0:02:55.4]}
7. O-O {[%clk 0:02:51.7]} 7... Bc5 {[%clk 0:02:52.8]} 8. Rd1 {[%clk 0:02:47.8]}
8... Bd4 {[%clk 0:02:52.3]} 9. Qf4 {[%clk 0:02:27.9]} 9... Bxc3 {[%clk
0:02:46.7]} 10. bxc3 {[%clk 0:02:12.4]} 10... Nxe4 {[%clk 0:02:46.8]} 11. Rb1
{[%clk 0:02:07.3]} 11... b6 {[%clk 0:02:28.1]} 12. Ba3 {[%clk 0:01:58.6]} 12...
Nd7 {[%clk 0:02:18.4]} 13. c4 {[%clk 0:01:49.8]} 13... c5 {[%clk 0:02:00.1]} 14.
cxd5 {[%clk 0:01:36.5]} 14... exd5 {[%clk 0:02:01]} 15. c4 {[%clk 0:01:31.4]}
15... O-O {[%clk 0:02:01]} 16. cxd5 {[%clk 0:01:14.8]} 16... Ndf6 {[%clk
0:02:01]} 17. Bf3 {[%clk 0:01:10.7]} 17... Re8 {[%clk 0:01:48.4]} 18. Bb2 {[%clk
0:00:35.7]} 18... Nxd5 {[%clk 0:01:31]} 19. Qg4 {[%clk 0:00:34.3]} 19... Ndf6
{[%clk 0:01:24]} 20. Qf4 {[%clk 0:00:29]} 20... Rc8 {[%clk 0:01:05.9]} 21. d3
{[%clk 0:00:28.3]} 21... Nd5 {[%clk 0:00:49]} 22. Qg4 {[%clk 0:00:15.8]} 22...
Nef6 {[%clk 0:00:48.8]} 23. Qg3 {[%clk 0:00:14.2]} 23... Qc7 {[%clk 0:00:45.3]}
24. Qg5 {[%clk 0:00:10.3]} 24... h6 {[%clk 0:00:44.3]} 25. Qh4 {[%clk
0:00:08.3]} 25... Qf4 {[%clk 0:00:42.1]} 26. Bxf6 {[%clk 0:00:06.4]} 26... Qxf6
{[%clk 0:00:40.2]} 27. Qxf6 {[%clk 0:00:05.3]} 27... Nxf6 {[%clk 0:00:41.1]} 28.
a4 {[%clk 0:00:05.9]} 28... Rcd8 {[%clk 0:00:34]} 29. a5 {[%clk 0:00:05.5]}
29... Rd6 {[%clk 0:00:34.5]} 30. axb6 {[%clk 0:00:06.2]} 30... axb6 {[%clk
0:00:35.4]} 31. Rd2 {[%clk 0:00:06.5]} 31... Nd7 {[%clk 0:00:34.6]} 32. Be2
{[%clk 0:00:02.4]} 32... Ne5 {[%clk 0:00:31.3]} 33. Kf1 {[%clk 0:00:02]} 33...
Ree6 {[%clk 0:00:25.7]} 34. Rdd1 {[%clk 0:00:01.8]} 34... g5 {[%clk 0:00:25.1]}
35. g3 {[%clk 0:00:02]} 35... Rf6 {[%clk 0:00:25.1]} 36. Kg2 {[%clk 0:00:01.9]}
36... Kg7 {[%clk 0:00:25]} 37. Kf1 {[%clk 0:00:01.7]} 37... Ng6 {[%clk
0:00:24.6]} 38. Kg2 {[%clk 0:00:02]} 38... Ne7 {[%clk 0:00:25]} 39. Bf3 {[%clk
0:00:01.9]} 39... Nf5 {[%clk 0:00:24.6]} 40. Be4 {[%clk 0:00:02.1]} 40... Nd4
{[%clk 0:00:24.8]} 41. Rd2 {[%clk 0:00:02.7]} 41... Rfe6 {[%clk 0:00:24.1]} 42.
Ra2 {[%clk 0:00:02.8]} 42... c4 {[%clk 0:00:20.9]} 43. g4 {[%clk 0:00:02.2]}
43... c3 {[%clk 0:00:20.9]} 44. Rc1 {[%clk 0:00:01.4]} 44... c2 {[%clk
0:00:20.7]} 0-1

[Event "*** SCC Grand Prix: Titled Tuesday Blitz"]
[Site "Chess.com"]
[Date "2020.07.21"]
[Round "6"]
[White "chessbia"]
[Black "ketster"]
[Result "1-0"]
[WhiteElo "2205"]
[BlackElo "2355"]
[TimeControl "180+1"]
[EndTime "11:07:15 PDT"]
[Termination "chessbia won by checkmate"]

1. d4 {[%clk 0:03:00.9]} 1... Nf6 {[%clk 0:02:57.5]} 2. c3 {[%clk 0:03:01.1]}
2... d5 {[%clk 0:02:57.2]} 3. Bf4 {[%clk 0:03:00.8]} 3... c5 {[%clk 0:02:54.7]}
4. e3 {[%clk 0:03:01.4]} 4... Nc6 {[%clk 0:02:54.8]} 5. Nd2 {[%clk 0:03:01.1]}
5... cxd4 {[%clk 0:02:52.5]} 6. exd4 {[%clk 0:03:00.8]} 6... Bf5 {[%clk
0:02:53.1]} 7. Ngf3 {[%clk 0:02:59.5]} 7... e6 {[%clk 0:02:53.2]} 8. Nh4 {[%clk
0:02:57.8]} 8... Bg4 {[%clk 0:02:52.7]} 9. Qc2 {[%clk 0:02:49.8]} 9... Be7
{[%clk 0:02:48]} 10. h3 {[%clk 0:02:48.3]} 10... Bh5 {[%clk 0:02:47.1]} 11. Bd3
{[%clk 0:02:40.2]} 11... Rc8 {[%clk 0:02:33.7]} 12. Qa4 {[%clk 0:02:24.7]} 12...
Nd7 {[%clk 0:02:25]} 13. Nhf3 {[%clk 0:02:23.1]} 13... Nb6 {[%clk 0:02:23.6]}
14. Qd1 {[%clk 0:02:20.6]} 14... Bd6 {[%clk 0:02:11.8]} 15. Bg5 {[%clk
0:02:15.3]} 15... f6 {[%clk 0:02:05]} 16. Bh4 {[%clk 0:02:10.9]} 16... g5 {[%clk
0:02:01.9]} 17. Bg3 {[%clk 0:02:09.3]} 17... Bxg3 {[%clk 0:02:00.4]} 18. fxg3
{[%clk 0:02:10.2]} 18... Qd6 {[%clk 0:02:00.4]} 19. Kf2 {[%clk 0:02:06.2]} 19...
O-O {[%clk 0:01:44.3]} 20. g4 {[%clk 0:02:03.4]} 20... Bg6 {[%clk 0:01:28]} 21.
Bxg6 {[%clk 0:01:59.4]} 21... hxg6 {[%clk 0:01:28.9]} 22. h4 {[%clk 0:01:57.9]}
22... Qf4 {[%clk 0:01:11.6]} 23. Qc2 {[%clk 0:01:47.5]} 23... Kg7 {[%clk
0:00:55.8]} 24. hxg5 {[%clk 0:01:32.5]} 24... Nxd4 {[%clk 0:00:36.6]} 25. gxf6+
{[%clk 0:01:26.4]} 25... Rxf6 {[%clk 0:00:32.4]} 26. Qd3 {[%clk 0:01:25.6]}
26... Nxf3 {[%clk 0:00:30.7]} 27. gxf3 {[%clk 0:01:13]} 27... e5 {[%clk
0:00:30.9]} 28. Qe3 {[%clk 0:01:08.6]} 28... Na4 {[%clk 0:00:24.5]} 29. Qxf4
{[%clk 0:00:54.5]} 29... Rxf4 {[%clk 0:00:23.2]} 30. Rab1 {[%clk 0:00:55.2]}
30... Rcf8 {[%clk 0:00:20]} 31. Ke3 {[%clk 0:00:55.4]} 31... g5 {[%clk
0:00:19.8]} 32. Rh5 {[%clk 0:00:50.4]} 32... Kg6 {[%clk 0:00:20.1]} 33. c4
{[%clk 0:00:43.8]} 33... d4+ {[%clk 0:00:18.5]} 34. Ke2 {[%clk 0:00:40.8]} 34...
Nc5 {[%clk 0:00:18]} 35. Rbh1 {[%clk 0:00:38.5]} 35... d3+ {[%clk 0:00:17.2]}
36. Ke3 {[%clk 0:00:37.6]} 36... Kf6 {[%clk 0:00:16.3]} 37. b4 {[%clk
0:00:33.8]} 37... Ne6 {[%clk 0:00:12.9]} 38. Ne4+ {[%clk 0:00:27.1]} 38... Ke7
{[%clk 0:00:12.4]} 39. Rh7+ {[%clk 0:00:25.6]} 39... Kd8 {[%clk 0:00:09.2]} 40.
Nd2 {[%clk 0:00:21.1]} 40... Nd4 {[%clk 0:00:05.6]} 41. Rxb7 {[%clk 0:00:17.9]}
41... Nxf3 {[%clk 0:00:02.8]} 42. Rhh7 {[%clk 0:00:17.3]} 42... Nxd2 {[%clk
0:00:02.4]} 43. Rb8# {[%clk 0:00:17.6]} 1-0

[Event "*** SCC Grand Prix: Titled Tuesday Blitz"]
[Site "Chess.com"]
[Date "2020.07.21"]
[Round "6"]
[White "bocah_sakit"]
[Black "EvgenyT"]
[Result "0-1"]
[WhiteElo "2727"]
[BlackElo "2918"]
[TimeControl "180+1"]
[EndTime "11:07:18 PDT"]
[Termination "EvgenyT won by resignation"]

1. e4 {[%clk 0:03:00.9]} 1... e5 {[%clk 0:02:58.9]} 2. Nf3 {[%clk 0:03:00.9]}
2... Nc6 {[%clk 0:02:58.9]} 3. Bb5 {[%clk 0:03:01.5]} 3... a6 {[%clk 0:02:57.7]}
4. Bxc6 {[%clk 0:03:01.9]} 4... dxc6 {[%clk 0:02:57.6]} 5. O-O {[%clk
0:03:02.8]} 5... Bd6 {[%clk 0:02:55.4]} 6. d4 {[%clk 0:03:02.9]} 6... exd4
{[%clk 0:02:55]} 7. Qxd4 {[%clk 0:03:03.8]} 7... f6 {[%clk 0:02:55.1]} 8. Nc3
{[%clk 0:03:04]} 8... Ne7 {[%clk 0:02:51.8]} 9. Be3 {[%clk 0:03:03.8]} 9... Ng6
{[%clk 0:02:51]} 10. Nd2 {[%clk 0:02:59.7]} 10... Be6 {[%clk 0:02:46.7]} 11.
Rad1 {[%clk 0:02:54.8]} 11... O-O {[%clk 0:02:30.5]} 12. Nc4 {[%clk 0:02:50.2]}
12... Bb4 {[%clk 0:02:15.3]} 13. Qxd8 {[%clk 0:02:14.5]} 13... Rfxd8 {[%clk
0:02:12.8]} 14. Nd2 {[%clk 0:01:50.1]} 14... Bxc3 {[%clk 0:02:04.2]} 15. bxc3
{[%clk 0:01:51]} 15... Bxa2 {[%clk 0:02:03.3]} 16. f4 {[%clk 0:01:49.3]} 16...
Bf7 {[%clk 0:01:59.4]} 17. Nf3 {[%clk 0:01:37.9]} 17... Re8 {[%clk 0:01:37.6]}
18. f5 {[%clk 0:01:06.9]} 18... Ne5 {[%clk 0:01:37.2]} 19. Bf4 {[%clk
0:01:07.3]} 19... Nc4 {[%clk 0:01:36.4]} 20. Rfe1 {[%clk 0:01:02.5]} 20... Re7
{[%clk 0:01:36.1]} 21. e5 {[%clk 0:00:39.2]} 21... fxe5 {[%clk 0:01:35.3]} 22.
Nxe5 {[%clk 0:00:33]} 22... Rae8 {[%clk 0:01:31.4]} 23. Nd3 {[%clk 0:00:27.5]}
23... Rxe1+ {[%clk 0:00:48.3]} 24. Nxe1 {[%clk 0:00:26.9]} 24... a5 {[%clk
0:00:38.9]} 25. Bxc7 {[%clk 0:00:25.2]} 25... a4 {[%clk 0:00:39.1]} 26. Nd3
{[%clk 0:00:25.5]} 26... a3 {[%clk 0:00:39.2]} 27. Nc5 {[%clk 0:00:16.8]} 27...
a2 {[%clk 0:00:35.6]} 28. Ra1 {[%clk 0:00:16.8]} 28... Na3 {[%clk 0:00:31]} 29.
Ne6 {[%clk 0:00:08.5]} 29... Rxe6 {[%clk 0:00:29.6]} 30. fxe6 {[%clk 0:00:09.4]}
30... Bxe6 {[%clk 0:00:29.7]} 31. c4 {[%clk 0:00:04]} 31... Bxc4 {[%clk
0:00:29.3]} 32. Be5 {[%clk 0:00:02.6]} 32... Nxc2 {[%clk 0:00:28.7]} 33. Rc1
{[%clk 0:00:03.2]} 33... Bd3 {[%clk 0:00:26.4]} 34. Kf2 {[%clk 0:00:03.3]} 34...
c5 {[%clk 0:00:24]} 35. Bb2 {[%clk 0:00:03]} 35... b5 {[%clk 0:00:22.6]} 36. g4
{[%clk 0:00:03.3]} 36... b4 {[%clk 0:00:22.2]} 37. h4 {[%clk 0:00:03.4]} 37...
c4 {[%clk 0:00:22.4]} 38. Be5 {[%clk 0:00:03.2]} 38... c3 {[%clk 0:00:21.1]} 39.
h5 {[%clk 0:00:01.8]} 39... a1=Q {[%clk 0:00:18.3]} 40. Rxa1 {[%clk 0:00:02.1]}
40... Nxa1 {[%clk 0:00:18.1]} 41. Ke3 {[%clk 0:00:02.8]} 41... Bc2 {[%clk
0:00:15.2]} 42. Bd6 {[%clk 0:00:02.3]} 42... Bd1 {[%clk 0:00:14.9]} 43. Bxb4
{[%clk 0:00:02.1]} 43... Nc2+ {[%clk 0:00:14.6]} 44. Kd3 {[%clk 0:00:02.7]}
44... Nxb4+ {[%clk 0:00:14.6]} 45. Kxc3 {[%clk 0:00:03.6]} 45... Bxg4 {[%clk
0:00:14.6]} 0-1

[Event "*** SCC Grand Prix: Titled Tuesday Blitz"]
[Site "Chess.com"]
[Date "2020.07.21"]
[Round "6"]
[White "Batsai"]
[Black "tylityli"]
[Result "1-0"]
[WhiteElo "2368"]
[BlackElo "2146"]
[TimeControl "180+1"]
[EndTime "11:07:18 PDT"]
[Termination "Batsai won on time"]

1. d4 {[%clk 0:02:57.2]} 1... Nf6 {[%clk 0:02:59.2]} 2. c4 {[%clk 0:02:56.4]}
2... e6 {[%clk 0:02:59.1]} 3. Nc3 {[%clk 0:02:56.3]} 3... Bb4 {[%clk 0:02:58.9]}
4. e3 {[%clk 0:02:56.2]} 4... O-O {[%clk 0:02:58.7]} 5. Bd3 {[%clk 0:02:55.9]}
5... d5 {[%clk 0:02:58.6]} 6. Ne2 {[%clk 0:02:55.6]} 6... dxc4 {[%clk
0:02:56.6]} 7. Bxc4 {[%clk 0:02:55.5]} 7... c5 {[%clk 0:02:57.5]} 8. O-O {[%clk
0:02:54.9]} 8... Qc7 {[%clk 0:02:57.2]} 9. Nb5 {[%clk 0:02:50.7]} 9... Qc6
{[%clk 0:02:55.8]} 10. a3 {[%clk 0:02:49.6]} 10... Ba5 {[%clk 0:02:50.1]} 11.
dxc5 {[%clk 0:02:37]} 11... Qxc5 {[%clk 0:02:48.1]} 12. Qd4 {[%clk 0:02:33.9]}
12... Qxd4 {[%clk 0:02:43.1]} 13. Nexd4 {[%clk 0:02:34.8]} 13... a6 {[%clk
0:02:43.2]} 14. Nd6 {[%clk 0:02:34.6]} 14... Nc6 {[%clk 0:02:31.7]} 15. Nxc6
{[%clk 0:02:32]} 15... bxc6 {[%clk 0:02:31.3]} 16. b4 {[%clk 0:02:30.8]} 16...
Bb6 {[%clk 0:02:29.7]} 17. Bb2 {[%clk 0:02:30.3]} 17... a5 {[%clk 0:02:28.3]}
18. Rfc1 {[%clk 0:02:11.2]} 18... Nd5 {[%clk 0:02:15.2]} 19. Bxd5 {[%clk
0:01:58.1]} 19... cxd5 {[%clk 0:02:12.7]} 20. Rc6 {[%clk 0:01:58.6]} 20... Rb8
{[%clk 0:01:58]} 21. Nxc8 {[%clk 0:01:35.1]} 21... Rfxc8 {[%clk 0:01:56.4]} 22.
Rac1 {[%clk 0:01:35.7]} 22... Rxc6 {[%clk 0:01:54.1]} 23. Rxc6 {[%clk
0:01:36.6]} 23... axb4 {[%clk 0:01:53.1]} 24. axb4 {[%clk 0:01:37.5]} 24... Kf8
{[%clk 0:01:45.3]} 25. Be5 {[%clk 0:01:36]} 25... Rb7 {[%clk 0:01:43.8]} 26.
Rc8+ {[%clk 0:01:29.9]} 26... Ke7 {[%clk 0:01:43.5]} 27. Bxg7 {[%clk 0:01:29.5]}
27... f6 {[%clk 0:01:29.6]} 28. Bf8+ {[%clk 0:01:21]} 28... Kd7 {[%clk
0:01:23.4]} 29. Ra8 {[%clk 0:01:12.5]} 29... Kc6 {[%clk 0:01:10.8]} 30. g4
{[%clk 0:01:09.7]} 30... Rf7 {[%clk 0:00:59.6]} 31. Rc8+ {[%clk 0:00:50.5]}
31... Kd7 {[%clk 0:00:42.1]} 32. Rb8 {[%clk 0:00:44.2]} 32... Kc7 {[%clk
0:00:38.5]} 33. Bd6+ {[%clk 0:00:41.3]} 33... Kc6 {[%clk 0:00:37.6]} 34. Bg3
{[%clk 0:00:38.6]} 34... e5 {[%clk 0:00:34.3]} 35. h4 {[%clk 0:00:37.6]} 35...
Bc7 {[%clk 0:00:28.4]} 36. Re8 {[%clk 0:00:34]} 36... Kb5 {[%clk 0:00:27.5]} 37.
g5 {[%clk 0:00:34]} 37... fxg5 {[%clk 0:00:20.9]} 38. hxg5 {[%clk 0:00:33]}
38... Rf5 {[%clk 0:00:18.2]} 39. Re7 {[%clk 0:00:30.6]} 39... Bd6 {[%clk
0:00:17.9]} 40. Rb7+ {[%clk 0:00:29.6]} 40... Kc6 {[%clk 0:00:17.1]} 41. Rxh7
{[%clk 0:00:29.9]} 41... Rxg5 {[%clk 0:00:16.4]} 42. Rh6 {[%clk 0:00:29.4]}
42... Kc7 {[%clk 0:00:13.8]} 43. b5 {[%clk 0:00:29]} 43... Bc5 {[%clk
0:00:12.2]} 44. Kf1 {[%clk 0:00:26.4]} 44... d4 {[%clk 0:00:11]} 45. Rc6+ {[%clk
0:00:26.2]} 45... Kb7 {[%clk 0:00:04.7]} 46. Rxc5 {[%clk 0:00:27.1]} 46... dxe3
{[%clk 0:00:04.2]} 47. Rxe5 {[%clk 0:00:27.6]} 47... Rxe5 {[%clk 0:00:02.8]} 48.
Bxe5 {[%clk 0:00:27.7]} 48... exf2 {[%clk 0:00:01.9]} 49. Bd4 {[%clk 0:00:27.5]}
1-0

[Event "*** SCC Grand Prix: Titled Tuesday Blitz"]
[Site "Chess.com"]
[Date "2020.07.21"]
[Round "6"]
[White "fmshawnrl123"]
[Black "AlexVanGog"]
[Result "0-1"]
[WhiteElo "2664"]
[BlackElo "2826"]
[TimeControl "180+1"]
[EndTime "11:07:19 PDT"]
[Termination "AlexVanGog won on time"]

1. c4 {[%clk 0:03:00.9]} 1... Nf6 {[%clk 0:02:57.7]} 2. g3 {[%clk 0:02:59.9]}
2... c5 {[%clk 0:02:56.8]} 3. Bg2 {[%clk 0:03:00.3]} 3... Nc6 {[%clk 0:02:57.1]}
4. Nc3 {[%clk 0:02:58.5]} 4... g6 {[%clk 0:02:57]} 5. Nf3 {[%clk 0:02:58.3]}
5... Bg7 {[%clk 0:02:57.3]} 6. d4 {[%clk 0:02:57.5]} 6... cxd4 {[%clk 0:02:57]}
7. Nxd4 {[%clk 0:02:58.4]} 7... O-O {[%clk 0:02:57.3]} 8. O-O {[%clk 0:02:58]}
8... Qa5 {[%clk 0:02:57.4]} 9. Nb3 {[%clk 0:02:55.7]} 9... Qh5 {[%clk
0:02:54.6]} 10. e4 {[%clk 0:02:55.9]} 10... d6 {[%clk 0:02:52.4]} 11. h3 {[%clk
0:02:53.6]} 11... Qxd1 {[%clk 0:02:48]} 12. Rxd1 {[%clk 0:02:54.5]} 12... Be6
{[%clk 0:02:47.8]} 13. Nd5 {[%clk 0:02:44.1]} 13... Rfc8 {[%clk 0:02:43.8]} 14.
Be3 {[%clk 0:02:40.1]} 14... Kf8 {[%clk 0:02:40.8]} 15. Rac1 {[%clk 0:02:38.3]}
15... b6 {[%clk 0:02:36.8]} 16. f4 {[%clk 0:02:35.2]} 16... Rab8 {[%clk
0:02:34.1]} 17. g4 {[%clk 0:02:21.6]} 17... Nd7 {[%clk 0:02:21.9]} 18. Kf2
{[%clk 0:02:12.8]} 18... Bxb2 {[%clk 0:02:18.7]} 19. Rc2 {[%clk 0:02:02.8]}
19... Bg7 {[%clk 0:02:17.3]} 20. Rdc1 {[%clk 0:02:00.6]} 20... Nc5 {[%clk
0:02:05.1]} 21. Ke2 {[%clk 0:01:51.5]} 21... Nxb3 {[%clk 0:01:57.5]} 22. axb3
{[%clk 0:01:52.4]} 22... Nd4+ {[%clk 0:01:57.9]} 23. Bxd4 {[%clk 0:01:52]} 23...
Bxd4 {[%clk 0:01:58.5]} 24. Kd3 {[%clk 0:01:48.9]} 24... Bg7 {[%clk 0:01:57]}
25. b4 {[%clk 0:01:39.5]} 25... a5 {[%clk 0:01:56.8]} 26. b5 {[%clk 0:01:25.2]}
26... Bd7 {[%clk 0:01:43.8]} 27. Rb1 {[%clk 0:01:08.8]} 27... e6 {[%clk
0:01:41.8]} 28. Nc3 {[%clk 0:01:05.3]} 28... Bxc3 {[%clk 0:01:41.1]} 29. Kxc3
{[%clk 0:01:02.2]} 29... Rc5 {[%clk 0:01:41.7]} 30. Kb3 {[%clk 0:00:58.8]} 30...
Rbc8 {[%clk 0:01:35.9]} 31. Rbc1 {[%clk 0:00:56.4]} 31... Ke7 {[%clk 0:01:34.4]}
32. Bf1 {[%clk 0:00:53.8]} 32... e5 {[%clk 0:01:07.3]} 33. f5 {[%clk 0:00:49.9]}
33... gxf5 {[%clk 0:01:07.2]} 34. exf5 {[%clk 0:00:35.6]} 34... d5 {[%clk
0:00:53.5]} 35. cxd5 {[%clk 0:00:36.5]} 35... a4+ {[%clk 0:00:32.9]} 36. Kb2
{[%clk 0:00:36.3]} 36... a3+ {[%clk 0:00:33.5]} 37. Kb3 {[%clk 0:00:34.9]} 37...
a2 {[%clk 0:00:21.7]} 38. Rxc5 {[%clk 0:00:18.9]} 38... Rxc5 {[%clk 0:00:22.6]}
39. Re1 {[%clk 0:00:19.2]} 39... Bxb5 {[%clk 0:00:21.9]} 40. Bxb5 {[%clk
0:00:06]} 40... Rxb5+ {[%clk 0:00:22.8]} 41. Kxa2 {[%clk 0:00:06.8]} 41... f6
{[%clk 0:00:22.9]} 42. Ka3 {[%clk 0:00:04]} 42... Rxd5 {[%clk 0:00:22.9]} 43.
Kb4 {[%clk 0:00:03.7]} 43... Rd3 {[%clk 0:00:22]} 44. g5 {[%clk 0:00:02.4]}
44... fxg5 {[%clk 0:00:21.7]} 45. Rxe5+ {[%clk 0:00:02.2]} 45... Kf6 {[%clk
0:00:20.7]} 46. Rb5 {[%clk 0:00:01.9]} 46... Rxh3 {[%clk 0:00:20.1]} 47. Kc4
{[%clk 0:00:02.1]} 47... h5 {[%clk 0:00:19.9]} 48. Kd4 {[%clk 0:00:01.7]} 48...
Rf3 {[%clk 0:00:19.6]} 0-1